[Event "Titled Tuesday Blitz December 06 Late 2022"]
[White "Ismayil, Malak"]
[Black "Battlecruiser_Operational"]
[WhiteFideId "13412604"]
[WhiteElo "1880"]
[BlackElo "2292"]
[Result "1-0"]
[Round "06"]
[TimeControl "180+1"]
[Date "2022.12.07"]
[WhiteClock "0:00:04"]
[BlackClock "0:00:02"]

1. e4 {[%clk 0:02:44]}  c6 {[%clk 0:02:59]} 2. d4 {[%clk 0:02:44]}  d5 {[%clk 0:02:59]} 3. Nc3 {[%clk 0:02:44]}  dxe4 {[%clk 0:02:56]} 4. Nxe4 {[%clk 0:02:45]}  Nf6 {[%clk 0:02:56]} 5. Nxf6+ {[%clk 0:02:45]}  exf6 {[%clk 0:02:57]} 6. c3 {[%clk 0:02:44]}  Bd6 {[%clk 0:02:53]} 7. Nf3 {[%clk 0:02:44]}  O-O {[%clk 0:02:52]} 8. Be3 {[%clk 0:02:44]}  Re8 {[%clk 0:02:48]} 9. Be2 {[%clk 0:02:45]}  Be6 {[%clk 0:02:38]} 10. Qd2 {[%clk 0:02:42]}  Qc7 {[%clk 0:02:37]} 11. h3 {[%clk 0:02:37]}  Nd7 {[%clk 0:02:33]} 12. O-O {[%clk 0:02:34]}  Rad8 {[%clk 0:02:21]} 13. c4 {[%clk 0:02:28]}  f5 {[%clk 0:01:54]} 14. c5 {[%clk 0:01:48]}  Be7 {[%clk 0:01:38]} 15. Bf4 {[%clk 0:01:45]}  Qc8 {[%clk 0:01:35]} 16. Qc2 {[%clk 0:01:35]}  h6 {[%clk 0:01:27]} 17. Bd3 {[%clk 0:01:29]}  g5 {[%clk 0:01:19]} 18. Bd2 {[%clk 0:01:24]}  Nf8 {[%clk 0:01:12]} 19. Bc3 {[%clk 0:01:01]}  Ng6 {[%clk 0:01:01]} 20. Rae1 {[%clk 0:01:00]}  Nf4 {[%clk 0:00:49]} 21. Ne5 {[%clk 0:01:00]}  f6 {[%clk 0:00:38]} 22. Nf3 {[%clk 0:01:00]}  Nxd3 {[%clk 0:00:31]} 23. Qxd3 {[%clk 0:00:58]}  Bxa2 {[%clk 0:00:30]} 24. b4 {[%clk 0:00:50]}  Bd5 {[%clk 0:00:27]} 25. Nd2 {[%clk 0:00:50]}  Bf8 {[%clk 0:00:22]} 26. f4 {[%clk 0:00:48]}  Bg7 {[%clk 0:00:16]} 27. Qc2 {[%clk 0:00:15]}  g4 {[%clk 0:00:12]} 28. h4 {[%clk 0:00:14]}  h5 {[%clk 0:00:12]} 29. Qd3 {[%clk 0:00:13]}  Kf7 {[%clk 0:00:12]} 30. Nc4 {[%clk 0:00:07]}  Bxc4 {[%clk 0:00:07]} 31. Qxc4+ {[%clk 0:00:08]}  Kg6 {[%clk 0:00:08]} 32. Qd3 {[%clk 0:00:07]}  Rxe1 {[%clk 0:00:06]} 33. Rxe1 {[%clk 0:00:08]}  Re8 {[%clk 0:00:07]} 34. Ra1 {[%clk 0:00:04]}  a6 {[%clk 0:00:06]} 35. Qc4 {[%clk 0:00:03]}  Qd7 {[%clk 0:00:06]} 36. Qd3 {[%clk 0:00:04]}  Re4 {[%clk 0:00:05]} 37. g3 {[%clk 0:00:03]}  Qd5 {[%clk 0:00:06]} 38. Kf2 {[%clk 0:00:03]}  Bf8 {[%clk 0:00:06]} 39. Rd1 {[%clk 0:00:04]}  Be7 {[%clk 0:00:06]} 40. Rd2 {[%clk 0:00:04]}  Bd8 {[%clk 0:00:06]} 41. Rd1 {[%clk 0:00:04]}  Bc7 {[%clk 0:00:06]} 42. Rd2 {[%clk 0:00:05]}  Re7 {[%clk 0:00:04]} 43. Rd1 {[%clk 0:00:04]}  Qe6 {[%clk 0:00:03]} 44. Bb2 {[%clk 0:00:02]}  Qe4 {[%clk 0:00:03]} 45. Qxe4 {[%clk 0:00:02]}  fxe4 {[%clk 0:00:04]} 46. Ke3 {[%clk 0:00:02]}  f5 {[%clk 0:00:04]} 47. d5 {[%clk 0:00:03]}  cxd5 {[%clk 0:00:04]} 48. Rxd5 {[%clk 0:00:04]}  Kf7 {[%clk 0:00:03]} 49. Rxf5+ {[%clk 0:00:04]}  Ke6 {[%clk 0:00:02]} 50. Rxh5 {[%clk 0:00:04]}  Rd7 {[%clk 0:00:02]} 51. Kxe4 {[%clk 0:00:04]}  Rd1 {[%clk 0:00:02]} 52. Rh6+ {[%clk 0:00:04]}  Kd7 {[%clk 0:00:02]} 53. Rh7+ {[%clk 0:00:04]}  Kc6 {[%clk 0:00:03]} 54. Be5 {[%clk 0:00:03]}  Bxe5 {[%clk 0:00:02]} 55. fxe5 {[%clk 0:00:04]}  Rb1 {[%clk 0:00:02]} 56. Kf5 {[%clk 0:00:04]}  Rxb4 {[%clk 0:00:02]} 57. e6 {[%clk 0:00:04]}  Rb1 {[%clk 0:00:02]} 58. e7 {[%clk 0:00:04]}  Re1 {[%clk 0:00:02]} 59. Kf6 {[%clk 0:00:05]}  Kd7 {[%clk 0:00:02]} 60. Rf7 {[%clk 0:00:04]} 1-0


[Site "https://www.chess.com"]

[Event "Titled Tuesday Blitz December 06 Late 2022"]
[White "Kavutskiy, Konstantin"]
[Black "Alexikov, Alexander"]
[WhiteFideId "2026384"]
[BlackFideId "14103958"]
[WhiteElo "2386"]
[BlackElo "2222"]
[Result "1-0"]
[Round "06"]
[TimeControl "180+1"]
[Date "2022.12.07"]
[WhiteClock "0:00:57"]
[BlackClock "0:00:15"]

1. d4 {[%clk 0:03:00]}  Nf6 {[%clk 0:02:59]} 2. Bg5 {[%clk 0:03:00]}  e6 {[%clk 0:02:59]} 3. Nd2 {[%clk 0:03:00]}  h6 {[%clk 0:02:58]} 4. Bh4 {[%clk 0:03:00]}  d5 {[%clk 0:02:58]} 5. e3 {[%clk 0:02:59]}  Be7 {[%clk 0:02:58]} 6. Bd3 {[%clk 0:02:59]}  O-O {[%clk 0:02:57]} 7. c3 {[%clk 0:02:58]}  b6 {[%clk 0:02:56]} 8. f4 {[%clk 0:02:57]}  Ba6 {[%clk 0:02:52]} 9. Bxa6 {[%clk 0:02:49]}  Nxa6 {[%clk 0:02:51]} 10. Bxf6 {[%clk 0:02:50]}  Bxf6 {[%clk 0:02:50]} 11. Ngf3 {[%clk 0:02:51]}  c5 {[%clk 0:02:46]} 12. Qe2 {[%clk 0:02:47]}  Qc8 {[%clk 0:02:42]} 13. Ne5 {[%clk 0:02:43]}  Nb8 {[%clk 0:02:36]} 14. Ndf3 {[%clk 0:02:42]}  Rd8 {[%clk 0:02:34]} 15. g4 {[%clk 0:02:32]}  Qa6 {[%clk 0:02:18]} 16. Qg2 {[%clk 0:02:20]}  Qb7 {[%clk 0:01:07]} 17. g5 {[%clk 0:02:17]}  hxg5 {[%clk 0:01:05]} 18. Nxg5 {[%clk 0:02:01]}  Bxg5 {[%clk 0:00:59]} 19. fxg5 {[%clk 0:02:00]}  Nc6 {[%clk 0:00:57]} 20. Nxc6 {[%clk 0:01:49]}  Qxc6 {[%clk 0:00:56]} 21. g6 {[%clk 0:01:50]}  Rf8 {[%clk 0:00:49]} 22. O-O {[%clk 0:01:48]}  fxg6 {[%clk 0:00:34]} 23. Qxg6 {[%clk 0:01:49]}  Rxf1+ {[%clk 0:00:33]} 24. Rxf1 {[%clk 0:01:48]}  Rf8 {[%clk 0:00:33]} 25. Rxf8+ {[%clk 0:01:34]}  Kxf8 {[%clk 0:00:32]} 26. Kf2 {[%clk 0:01:35]}  Qe8 {[%clk 0:00:31]} 27. Qh7 {[%clk 0:01:34]}  Qf7+ {[%clk 0:00:30]} 28. Ke2 {[%clk 0:01:33]}  Ke7 {[%clk 0:00:30]} 29. Qh8 {[%clk 0:01:30]}  Qf8 {[%clk 0:00:29]} 30. Qxf8+ {[%clk 0:01:20]}  Kxf8 {[%clk 0:00:28]} 31. Kf3 {[%clk 0:01:19]}  Kf7 {[%clk 0:00:28]} 32. Kf4 {[%clk 0:01:18]}  Kf6 {[%clk 0:00:28]} 33. h4 {[%clk 0:01:18]}  a5 {[%clk 0:00:23]} 34. a4 {[%clk 0:01:15]}  c4 {[%clk 0:00:18]} 35. h5 {[%clk 0:01:10]}  g6 {[%clk 0:00:15]} 36. hxg6 {[%clk 0:00:57]} 1-0


[Site "https://www.chess.com"]

[Event "Titled Tuesday Blitz December 06 Late 2022"]
[White "Kleiman, Jake"]
[Black "Yoo, Christopher Woojin"]
[WhiteFideId "2020041"]
[BlackFideId "30909694"]
[WhiteElo "2603"]
[BlackElo "2463"]
[Result "1-0"]
[Round "06"]
[TimeControl "180+1"]
[Date "2022.12.06"]
[WhiteClock "0:00:36"]
[BlackClock "0:00:02"]

1. e4 {[%clk 0:02:47]}  c5 {[%clk 0:02:54]} 2. c3 {[%clk 0:02:46]}  Nf6 {[%clk 0:02:50]} 3. e5 {[%clk 0:02:46]}  Nd5 {[%clk 0:02:50]} 4. Nf3 {[%clk 0:02:46]}  Nc6 {[%clk 0:02:48]} 5. Bc4 {[%clk 0:02:47]}  Nb6 {[%clk 0:02:48]} 6. Bb3 {[%clk 0:02:46]}  d5 {[%clk 0:02:48]} 7. exd6 {[%clk 0:02:46]}  Qxd6 {[%clk 0:02:48]} 8. O-O {[%clk 0:02:46]}  c4 {[%clk 0:02:38]} 9. Bc2 {[%clk 0:02:46]}  Bg4 {[%clk 0:02:38]} 10. Qe2 {[%clk 0:02:47]}  e6 {[%clk 0:02:34]} 11. Na3 {[%clk 0:02:47]}  Qc5 {[%clk 0:02:11]} 12. b3 {[%clk 0:02:45]}  cxb3 {[%clk 0:02:09]} 13. axb3 {[%clk 0:02:46]}  Be7 {[%clk 0:02:08]} 14. h3 {[%clk 0:02:42]}  Bh5 {[%clk 0:02:03]} 15. Be4 {[%clk 0:02:20]}  O-O {[%clk 0:01:38]} 16. Nc4 {[%clk 0:02:20]}  Nxc4 {[%clk 0:01:20]} 17. bxc4 {[%clk 0:02:21]}  Ne5 {[%clk 0:01:12]} 18. Ba3 {[%clk 0:02:09]}  Nxf3+ {[%clk 0:01:07]} 19. Bxf3 {[%clk 0:02:00]}  Bxf3 {[%clk 0:01:06]} 20. Qxf3 {[%clk 0:02:01]}  Qc7 {[%clk 0:01:06]} 21. Bxe7 {[%clk 0:01:57]}  Qxe7 {[%clk 0:01:07]} 22. d4 {[%clk 0:01:52]}  b6 {[%clk 0:00:58]} 23. Ra6 {[%clk 0:01:42]}  Rac8 {[%clk 0:00:56]} 24. Rfa1 {[%clk 0:01:36]}  Rc7 {[%clk 0:00:56]} 25. R1a4 {[%clk 0:01:28]}  Rfc8 {[%clk 0:00:55]} 26. g3 {[%clk 0:01:28]}  g6 {[%clk 0:00:36]} 27. h4 {[%clk 0:01:28]}  h5 {[%clk 0:00:36]} 28. Kg2 {[%clk 0:01:28]}  Kg7 {[%clk 0:00:36]} 29. Qf4 {[%clk 0:01:17]}  Qd7 {[%clk 0:00:25]} 30. Qe5+ {[%clk 0:01:15]}  f6 {[%clk 0:00:25]} 31. Qe4 {[%clk 0:01:13]}  Kf7 {[%clk 0:00:20]} 32. d5 {[%clk 0:01:09]}  exd5 {[%clk 0:00:19]} 33. cxd5 {[%clk 0:01:09]}  Re8 {[%clk 0:00:17]} 34. Qd4 {[%clk 0:00:59]}  Qb5 {[%clk 0:00:11]} 35. Rxa7 {[%clk 0:00:58]}  Ree7 {[%clk 0:00:11]} 36. Rxc7 {[%clk 0:00:51]}  Rxc7 {[%clk 0:00:12]} 37. Rb4 {[%clk 0:00:51]}  Qc5 {[%clk 0:00:13]} 38. d6 {[%clk 0:00:42]}  Rc6 {[%clk 0:00:06]} 39. d7 {[%clk 0:00:39]}  Rd6 {[%clk 0:00:05]} 40. d8=Q {[%clk 0:00:37]}  Qc6+ {[%clk 0:00:02]} 41. Kh2 {[%clk 0:00:37]}  Rxd8 {[%clk 0:00:02]} 42. Qxd8 {[%clk 0:00:37]}  Qf3 {[%clk 0:00:02]} 43. Qxb6 {[%clk 0:00:36]} 1-0


[Site "https://www.chess.com"]

[Event "Titled Tuesday Blitz December 06 Late 2022"]
[White "Korkmaz, Necmettin"]
[Black "Gutkin, Ilya"]
[WhiteFideId "6303285"]
[BlackFideId "16203470"]
[WhiteElo "2094"]
[BlackElo "2265"]
[Result "0-1"]
[Round "06"]
[TimeControl "180+1"]
[Date "2022.12.07"]
[WhiteClock "0:00:26"]
[BlackClock "0:00:17"]

1. e4 {[%clk 0:02:54]}  e6 {[%clk 0:02:30]} 2. d3 {[%clk 0:02:53]}  d5 {[%clk 0:02:30]} 3. Nd2 {[%clk 0:02:52]}  Nf6 {[%clk 0:02:30]} 4. Ngf3 {[%clk 0:02:53]}  b6 {[%clk 0:02:31]} 5. e5 {[%clk 0:02:52]}  Nfd7 {[%clk 0:02:31]} 6. d4 {[%clk 0:02:52]}  c5 {[%clk 0:02:31]} 7. c3 {[%clk 0:02:52]}  Be7 {[%clk 0:02:30]} 8. Bd3 {[%clk 0:02:52]}  Ba6 {[%clk 0:02:30]} 9. Qe2 {[%clk 0:02:48]}  Qc8 {[%clk 0:02:29]} 10. c4 {[%clk 0:02:44]}  dxc4 {[%clk 0:02:24]} 11. Nxc4 {[%clk 0:02:43]}  O-O {[%clk 0:02:16]} 12. O-O {[%clk 0:02:39]}  Nc6 {[%clk 0:02:08]} 13. dxc5 {[%clk 0:02:32]}  Nxc5 {[%clk 0:02:05]} 14. Bf4 {[%clk 0:02:01]}  Nxd3 {[%clk 0:02:02]} 15. Qxd3 {[%clk 0:02:00]}  Nb4 {[%clk 0:02:02]} 16. Qd2 {[%clk 0:01:31]}  Qxc4 {[%clk 0:01:58]} 17. Rac1 {[%clk 0:01:31]}  Qd3 {[%clk 0:01:52]} 18. Rfd1 {[%clk 0:01:26]}  Qxd2 {[%clk 0:01:51]} 19. Rxd2 {[%clk 0:01:27]}  Rfd8 {[%clk 0:01:34]} 20. Rcd1 {[%clk 0:01:21]}  Rxd2 {[%clk 0:01:32]} 21. Rxd2 {[%clk 0:01:21]}  Nd5 {[%clk 0:01:31]} 22. Bg5 {[%clk 0:01:14]}  Bxg5 {[%clk 0:01:31]} 23. Nxg5 {[%clk 0:01:15]}  Rc8 {[%clk 0:01:31]} 24. h3 {[%clk 0:01:11]}  Rc4 {[%clk 0:01:12]} 25. f3 {[%clk 0:01:08]}  h6 {[%clk 0:01:02]} 26. Ne4 {[%clk 0:01:07]}  Rc1+ {[%clk 0:00:53]} 27. Kh2 {[%clk 0:01:03]}  g5 {[%clk 0:00:47]} 28. Kg3 {[%clk 0:01:00]}  Kg7 {[%clk 0:00:46]} 29. h4 {[%clk 0:01:00]}  Kg6 {[%clk 0:00:42]} 30. hxg5 {[%clk 0:01:00]}  hxg5 {[%clk 0:00:42]} 31. a3 {[%clk 0:01:00]}  Rf1 {[%clk 0:00:36]} 32. b4 {[%clk 0:00:54]}  Bc4 {[%clk 0:00:31]} 33. Nd6 {[%clk 0:00:54]}  Bb3 {[%clk 0:00:27]} 34. Nb5 {[%clk 0:00:50]}  a5 {[%clk 0:00:24]} 35. bxa5 {[%clk 0:00:45]}  bxa5 {[%clk 0:00:25]} 36. Nd4 {[%clk 0:00:45]}  a4 {[%clk 0:00:25]} 37. Nc6 {[%clk 0:00:45]}  Rc1 {[%clk 0:00:21]} 38. Nd4 {[%clk 0:00:44]}  Ra1 {[%clk 0:00:21]} 39. Nb5 {[%clk 0:00:42]}  Bc4 {[%clk 0:00:21]} 40. Nd6 {[%clk 0:00:43]}  Ba6 {[%clk 0:00:18]} 41. Rb2 {[%clk 0:00:39]}  Rxa3 {[%clk 0:00:18]} 42. Rb8 {[%clk 0:00:39]}  Ne7 {[%clk 0:00:14]} 43. Re8 {[%clk 0:00:37]}  Nf5+ {[%clk 0:00:14]} 44. Nxf5 {[%clk 0:00:36]}  Kxf5 {[%clk 0:00:15]} 45. Re7 {[%clk 0:00:32]}  Kxe5 {[%clk 0:00:14]} 46. Rxf7 {[%clk 0:00:33]}  Bc4 {[%clk 0:00:14]} 47. Rc7 {[%clk 0:00:31]}  Bd5 {[%clk 0:00:14]} 48. Ra7 {[%clk 0:00:31]}  Ra1 {[%clk 0:00:13]} 49. Kg4 {[%clk 0:00:31]}  Kf6 {[%clk 0:00:13]} 50. g3 {[%clk 0:00:24]}  a3 {[%clk 0:00:13]} 51. f4 {[%clk 0:00:25]}  gxf4 {[%clk 0:00:14]} 52. gxf4 {[%clk 0:00:26]}  a2 {[%clk 0:00:14]} 53. f5 {[%clk 0:00:25]}  Rg1+ {[%clk 0:00:14]} 54. Kf4 {[%clk 0:00:25]}  a1=Q {[%clk 0:00:14]} 55. Rxa1 {[%clk 0:00:25]}  Rxa1 {[%clk 0:00:14]} 56. fxe6 {[%clk 0:00:26]}  Ra4+ {[%clk 0:00:14]} 57. Ke3 {[%clk 0:00:25]}  Kxe6 {[%clk 0:00:15]} 58. Kd3 {[%clk 0:00:25]}  Ke5 {[%clk 0:00:16]} 59. Kc3 {[%clk 0:00:25]}  Ra3+ {[%clk 0:00:16]} 60. Kb4 {[%clk 0:00:25]}  Rb3+ {[%clk 0:00:16]} 61. Kc5 {[%clk 0:00:26]}  Rc3+ {[%clk 0:00:16]} 62. Kb5 {[%clk 0:00:25]}  Kd6 {[%clk 0:00:16]} 63. Kb4 {[%clk 0:00:26]}  Rb3+ {[%clk 0:00:16]} 64. Ka5 {[%clk 0:00:25]}  Kc6 {[%clk 0:00:16]} 65. Ka4 {[%clk 0:00:25]}  Kc5 {[%clk 0:00:16]} 66. Ka5 {[%clk 0:00:26]}  Ra3# {[%clk 0:00:17]} 0-1


[Site "https://www.chess.com"]

[Event "Titled Tuesday Blitz December 06 Late 2022"]
[White "Lewicki, Miroslaw"]
[Black "Kaganskiy, Gleb"]
[WhiteFideId "1113380"]
[BlackFideId "4132025"]
[WhiteElo "2191"]
[BlackElo "2165"]
[Result "1-0"]
[Round "06"]
[TimeControl "180+1"]
[Date "2022.12.07"]
[WhiteClock "0:01:18"]
[BlackClock "0:00:31"]

1. g3 {[%clk 0:02:58]}  d5 {[%clk 0:02:57]} 2. Bg2 {[%clk 0:02:58]}  Nf6 {[%clk 0:02:55]} 3. Nf3 {[%clk 0:02:59]}  e6 {[%clk 0:02:50]} 4. O-O {[%clk 0:02:59]}  Be7 {[%clk 0:02:50]} 5. b3 {[%clk 0:02:59]}  O-O {[%clk 0:02:50]} 6. Bb2 {[%clk 0:03:00]}  c5 {[%clk 0:02:49]} 7. d4 {[%clk 0:03:00]}  Nc6 {[%clk 0:02:48]} 8. Nbd2 {[%clk 0:03:00]}  b6 {[%clk 0:02:45]} 9. dxc5 {[%clk 0:02:58]}  Bxc5 {[%clk 0:02:44]} 10. c4 {[%clk 0:02:59]}  Bb7 {[%clk 0:02:42]} 11. cxd5 {[%clk 0:02:57]}  Nxd5 {[%clk 0:02:42]} 12. Ne4 {[%clk 0:02:57]}  Be7 {[%clk 0:02:40]} 13. Rc1 {[%clk 0:02:53]}  Rc8 {[%clk 0:02:39]} 14. Qd3 {[%clk 0:02:47]}  Ndb4 {[%clk 0:02:14]} 15. Qe3 {[%clk 0:02:46]}  Nd5 {[%clk 0:02:10]} 16. Qd3 {[%clk 0:02:37]}  Ndb4 {[%clk 0:02:09]} 17. Qc3 {[%clk 0:02:38]}  f6 {[%clk 0:01:58]} 18. Rfd1 {[%clk 0:02:35]}  Nxa2 {[%clk 0:01:50]} 19. Rxd8 {[%clk 0:02:33]}  Rfxd8 {[%clk 0:01:41]} 20. Qc4 {[%clk 0:02:33]}  Nxc1 {[%clk 0:01:33]} 21. Bh3 {[%clk 0:01:55]}  Nd4 {[%clk 0:01:13]} 22. Bxe6+ {[%clk 0:01:55]}  Nxe6 {[%clk 0:01:06]} 23. Qxe6+ {[%clk 0:01:55]}  Kf8 {[%clk 0:01:04]} 24. Neg5 {[%clk 0:01:23]}  Rd1+ {[%clk 0:00:43]} 25. Kg2 {[%clk 0:01:23]}  Bxf3+ {[%clk 0:00:43]} 26. exf3 {[%clk 0:01:19]}  fxg5 {[%clk 0:00:32]} 27. Qxc8+ {[%clk 0:01:18]}  Kf7 {[%clk 0:00:31]} 28. Bxc1 {[%clk 0:01:18]} 1-0


[Site "https://www.chess.com"]

[Event "Titled Tuesday Blitz December 06 Late 2022"]
[White "Liu, Kelsey"]
[Black "Haszon, David"]
[WhiteFideId "30944481"]
[BlackFideId "733610"]
[WhiteElo "2274"]
[BlackElo "2210"]
[Result "0-1"]
[Round "06"]
[TimeControl "180+1"]
[Date "2022.12.07"]
[WhiteClock "0:00:01"]
[BlackClock "0:01:22"]

1. e4 {[%clk 0:02:46]}  e6 {[%clk 0:03:00]} 2. d4 {[%clk 0:02:45]}  d5 {[%clk 0:03:01]} 3. Nc3 {[%clk 0:02:45]}  dxe4 {[%clk 0:03:00]} 4. Nxe4 {[%clk 0:02:46]}  Nd7 {[%clk 0:02:59]} 5. g3 {[%clk 0:02:45]}  Ngf6 {[%clk 0:02:59]} 6. Nxf6+ {[%clk 0:02:44]}  Nxf6 {[%clk 0:02:59]} 7. Bg2 {[%clk 0:02:44]}  c5 {[%clk 0:02:59]} 8. Nf3 {[%clk 0:02:26]}  cxd4 {[%clk 0:02:57]} 9. Qxd4 {[%clk 0:02:24]}  Qxd4 {[%clk 0:02:53]} 10. Nxd4 {[%clk 0:02:25]}  a6 {[%clk 0:02:51]} 11. Bd2 {[%clk 0:02:19]}  Bc5 {[%clk 0:02:51]} 12. Nb3 {[%clk 0:02:18]}  Ba7 {[%clk 0:02:46]} 13. O-O {[%clk 0:02:19]}  Ke7 {[%clk 0:02:45]} 14. Na5 {[%clk 0:02:16]}  Rd8 {[%clk 0:02:38]} 15. Bb4+ {[%clk 0:01:54]}  Ke8 {[%clk 0:02:35]} 16. Nxb7 {[%clk 0:01:48]}  Bxb7 {[%clk 0:02:29]} 17. Bxb7 {[%clk 0:01:49]}  Rab8 {[%clk 0:02:30]} 18. Bc6+ {[%clk 0:01:49]}  Nd7 {[%clk 0:02:30]} 19. Bc3 {[%clk 0:01:38]}  Rdc8 {[%clk 0:02:27]} 20. Ba4 {[%clk 0:01:28]}  f6 {[%clk 0:02:20]} 21. Rad1 {[%clk 0:01:26]}  Rb7 {[%clk 0:02:20]} 22. Rd6 {[%clk 0:01:26]}  Ke7 {[%clk 0:02:18]} 23. Rfd1 {[%clk 0:01:25]}  Nc5 {[%clk 0:02:16]} 24. Bc6 {[%clk 0:01:03]}  Rbc7 {[%clk 0:02:07]} 25. Bf3 {[%clk 0:00:59]}  Na4 {[%clk 0:01:58]} 26. Ba5 {[%clk 0:00:40]}  Rc5 {[%clk 0:01:49]} 27. Bb4 {[%clk 0:00:23]}  R5c7 {[%clk 0:01:42]} 28. Rd7+ {[%clk 0:00:14]}  Ke8 {[%clk 0:01:41]} 29. Bc6 {[%clk 0:00:10]}  Rxc6 {[%clk 0:01:40]} 30. Re7+ {[%clk 0:00:09]}  Kf8 {[%clk 0:01:39]} 31. Rxa7+ {[%clk 0:00:10]}  Kg8 {[%clk 0:01:38]} 32. Rdd7 {[%clk 0:00:10]}  Nc5 {[%clk 0:01:32]} 33. Rxg7+ {[%clk 0:00:10]}  Kf8 {[%clk 0:01:32]} 34. Raf7+ {[%clk 0:00:08]}  Ke8 {[%clk 0:01:33]} 35. Re7+ {[%clk 0:00:08]}  Kf8 {[%clk 0:01:33]} 36. Ref7+ {[%clk 0:00:09]}  Ke8 {[%clk 0:01:32]} 37. Ra7 {[%clk 0:00:06]}  Kf8 {[%clk 0:01:32]} 38. Rxh7 {[%clk 0:00:06]}  Kg8 {[%clk 0:01:32]} 39. Rag7+ {[%clk 0:00:06]}  Kf8 {[%clk 0:01:33]} 40. Rf7+ {[%clk 0:00:07]}  Kg8 {[%clk 0:01:33]} 41. Rfg7+ {[%clk 0:00:07]}  Kf8 {[%clk 0:01:33]} 42. Ra7 {[%clk 0:00:07]}  Kg8 {[%clk 0:01:32]} 43. Bc3 {[%clk 0:00:07]}  e5 {[%clk 0:01:27]} 44. Rag7+ {[%clk 0:00:07]}  Kf8 {[%clk 0:01:28]} 45. Rg6 {[%clk 0:00:06]}  Ne4 {[%clk 0:01:25]} 46. Rh8+ {[%clk 0:00:03]}  Kf7 {[%clk 0:01:25]} 47. Rxc8 {[%clk 0:00:04]}  Rxc8 {[%clk 0:01:25]} 48. Rh6 {[%clk 0:00:04]}  Nxc3 {[%clk 0:01:25]} 49. bxc3 {[%clk 0:00:05]}  Rxc3 {[%clk 0:01:26]} 50. Rh7+ {[%clk 0:00:05]}  Kg6 {[%clk 0:01:26]} 51. Ra7 {[%clk 0:00:06]}  Rxc2 {[%clk 0:01:26]} 52. Rxa6 {[%clk 0:00:06]}  e4 {[%clk 0:01:26]} 53. Ra4 {[%clk 0:00:04]}  Kf5 {[%clk 0:01:26]} 54. Ra5+ {[%clk 0:00:04]}  Kg4 {[%clk 0:01:26]} 55. Ra4 {[%clk 0:00:03]}  f5 {[%clk 0:01:22]} 56. Kg2 {[%clk 0:00:02]}  Kg5 {[%clk 0:01:22]} 57. h3 {[%clk 0:00:01]}  e3 {[%clk 0:01:22]} 0-1


[Site "https://www.chess.com"]

[Event "Titled Tuesday Blitz December 06 Late 2022"]
[White "Makridis, Dimitrios"]
[Black "Korobov, Anton"]
[WhiteFideId "25864475"]
[BlackFideId "14105730"]
[WhiteElo "2272"]
[BlackElo "2635"]
[Result "0-1"]
[Round "06"]
[TimeControl "180+1"]
[Date "2022.12.06"]
[WhiteClock "0:00:03"]
[BlackClock "0:00:32"]

1. b3 {[%clk 0:03:00]}  d5 {[%clk 0:02:56]} 2. Bb2 {[%clk 0:03:00]}  c5 {[%clk 0:02:56]} 3. e3 {[%clk 0:03:00]}  Nc6 {[%clk 0:02:56]} 4. Nf3 {[%clk 0:03:00]}  e6 {[%clk 0:02:57]} 5. d4 {[%clk 0:03:00]}  Nf6 {[%clk 0:02:56]} 6. Bd3 {[%clk 0:03:00]}  Bd6 {[%clk 0:02:54]} 7. O-O {[%clk 0:02:59]}  O-O {[%clk 0:02:53]} 8. Ne5 {[%clk 0:02:59]}  cxd4 {[%clk 0:02:50]} 9. exd4 {[%clk 0:02:59]}  Ne7 {[%clk 0:02:50]} 10. Nd2 {[%clk 0:02:57]}  b6 {[%clk 0:02:50]} 11. Re1 {[%clk 0:02:55]}  Bb7 {[%clk 0:02:50]} 12. Nf1 {[%clk 0:02:43]}  Rc8 {[%clk 0:02:49]} 13. Ng3 {[%clk 0:02:40]}  Ng6 {[%clk 0:02:39]} 14. Nh5 {[%clk 0:02:36]}  Ne4 {[%clk 0:02:32]} 15. Nxg6 {[%clk 0:02:25]}  hxg6 {[%clk 0:02:24]} 16. Ng3 {[%clk 0:02:25]}  f5 {[%clk 0:02:24]} 17. a4 {[%clk 0:01:52]}  Rf6 {[%clk 0:02:08]} 18. c4 {[%clk 0:01:42]}  g5 {[%clk 0:02:01]} 19. Rc1 {[%clk 0:01:35]}  Rh6 {[%clk 0:01:55]} 20. cxd5 {[%clk 0:01:30]}  exd5 {[%clk 0:01:48]} 21. Qf3 {[%clk 0:00:46]}  g6 {[%clk 0:01:41]} 22. Rxc8 {[%clk 0:00:44]}  Bxc8 {[%clk 0:01:41]} 23. h3 {[%clk 0:00:38]}  Qe7 {[%clk 0:01:15]} 24. Bc1 {[%clk 0:00:33]}  Rh4 {[%clk 0:01:13]} 25. Qe2 {[%clk 0:00:23]}  Qf6 {[%clk 0:00:56]} 26. Qc2 {[%clk 0:00:17]}  Bd7 {[%clk 0:00:56]} 27. Bb5 {[%clk 0:00:16]}  Bxb5 {[%clk 0:00:51]} 28. axb5 {[%clk 0:00:17]}  Nxg3 {[%clk 0:00:45]} 29. fxg3 {[%clk 0:00:15]}  Bxg3 {[%clk 0:00:44]} 30. Qc8+ {[%clk 0:00:13]}  Kg7 {[%clk 0:00:41]} 31. Qd7+ {[%clk 0:00:05]}  Kh6 {[%clk 0:00:37]} 32. Rd1 {[%clk 0:00:02]}  Rxd4 {[%clk 0:00:36]} 33. Rf1 {[%clk 0:00:02]}  Re4 {[%clk 0:00:33]} 34. Qxd5 {[%clk 0:00:02]}  Qd4+ {[%clk 0:00:33]} 35. Qxd4 {[%clk 0:00:02]}  Rxd4 {[%clk 0:00:34]} 36. Be3 {[%clk 0:00:03]}  Rb4 {[%clk 0:00:34]} 37. Rf3 {[%clk 0:00:03]}  f4 {[%clk 0:00:34]} 38. Bd2 {[%clk 0:00:02]}  Rxb5 {[%clk 0:00:34]} 39. Kf1 {[%clk 0:00:02]}  Kh5 {[%clk 0:00:31]} 40. Rd3 {[%clk 0:00:02]}  g4 {[%clk 0:00:32]} 41. hxg4+ {[%clk 0:00:01]}  Kxg4 {[%clk 0:00:32]} 42. Rd6 {[%clk 0:00:02]}  g5 {[%clk 0:00:32]} 43. Rd7 {[%clk 0:00:02]}  a5 {[%clk 0:00:31]} 44. Ke2 {[%clk 0:00:02]}  Rxb3 {[%clk 0:00:31]} 45. Kd1 {[%clk 0:00:02]}  a4 {[%clk 0:00:31]} 46. Rd5 {[%clk 0:00:02]}  b5 {[%clk 0:00:31]} 47. Kc2 {[%clk 0:00:03]}  Bf2 {[%clk 0:00:31]} 48. Rd7 {[%clk 0:00:02]}  Be3 {[%clk 0:00:31]} 49. Be1 {[%clk 0:00:02]}  Ra3 {[%clk 0:00:31]} 50. Rd5 {[%clk 0:00:02]}  Ra2+ {[%clk 0:00:30]} 51. Kd3 {[%clk 0:00:02]}  Rxg2 {[%clk 0:00:30]} 52. Rxb5 {[%clk 0:00:03]}  a3 {[%clk 0:00:31]} 53. Bc3 {[%clk 0:00:04]}  a2 {[%clk 0:00:31]} 54. Bf6 {[%clk 0:00:04]}  Kf3 {[%clk 0:00:31]} 55. Ra5 {[%clk 0:00:04]}  g4 {[%clk 0:00:31]} 56. Be5 {[%clk 0:00:02]}  Rd2+ {[%clk 0:00:31]} 57. Kc4 {[%clk 0:00:03]}  g3 {[%clk 0:00:32]} 0-1


[Site "https://www.chess.com"]